[Event "Late-Titled-Tuesday-Blitz-February-27-2024"]
[Site "Chess.com"]
[Date "2024.02.27"]
[Round "8"]
[White "Journey_to_GrandMaster_YT"]
[Black "gahryman"]
[Result "0-1"]
[WhiteElo "2509"]
[BlackElo "2691"]
[TimeControl "180+1"]
[EndTime "15:27:52 PST"]
[Termination "gahryman won by resignation"]

1. d4 {[%clk 0:03:00]} 1... Nf6 {[%clk 0:02:59.1]} 2. Nf3 {[%clk 0:03:00]} 2...
d5 {[%clk 0:02:58.9]} 3. c4 {[%clk 0:02:59.9]} 3... e6 {[%clk 0:02:58.8]} 4. Nc3
{[%clk 0:02:59.8]} 4... Nbd7 {[%clk 0:02:58.3]} 5. Bg5 {[%clk 0:02:58.3]} 5...
Bb4 {[%clk 0:02:58.4]} 6. Qb3 {[%clk 0:02:43.6]} 6... c5 {[%clk 0:02:57.3]} 7.
dxc5 {[%clk 0:02:43]} 7... Qa5 {[%clk 0:02:47.7]} 8. a3 {[%clk 0:02:36.4]} 8...
Bxc5 {[%clk 0:02:21.3]} 9. e3 {[%clk 0:02:31.3]} 9... Ne4 {[%clk 0:02:18.4]} 10.
cxd5 {[%clk 0:02:26.8]} 10... exd5 {[%clk 0:02:10]} 11. Bd3 {[%clk 0:02:16.7]}
11... O-O {[%clk 0:01:15.2]} 12. O-O {[%clk 0:01:51.9]} 12... Nxc3 {[%clk
0:01:09.1]} 13. bxc3 {[%clk 0:01:50.1]} 13... Bd6 {[%clk 0:01:08.8]} 14. Rfd1
{[%clk 0:01:31.9]} 14... Qc7 {[%clk 0:01:03.6]} 15. Qxd5 {[%clk 0:01:27.9]}
15... Ne5 {[%clk 0:01:00.3]} 16. Nxe5 {[%clk 0:01:14.4]} 16... Bxe5 {[%clk
0:01:00.2]} 17. Qe4 {[%clk 0:01:13.8]} 17... g6 {[%clk 0:00:57]} 18. f4 {[%clk
0:01:04.6]} 18... Bg7 {[%clk 0:00:53.3]} 19. Qc4 {[%clk 0:00:38.9]} 19... Qxc4
{[%clk 0:00:44.3]} 20. Bxc4 {[%clk 0:00:38.6]} 20... Bf5 {[%clk 0:00:45.2]} 21.
Bd5 {[%clk 0:00:35.3]} 21... Rac8 {[%clk 0:00:43.2]} 22. e4 {[%clk 0:00:30.9]}
22... Bg4 {[%clk 0:00:41.7]} 23. Rd3 {[%clk 0:00:29]} 23... b6 {[%clk
0:00:38.6]} 24. Rc1 {[%clk 0:00:25.8]} 24... Be2 {[%clk 0:00:31.1]} 25. Re3
{[%clk 0:00:23.8]} 25... Bc4 {[%clk 0:00:30.7]} 26. Bh4 {[%clk 0:00:13]} 26...
Rfe8 {[%clk 0:00:26.6]} 27. Bxc4 {[%clk 0:00:11.9]} 27... Rxc4 {[%clk
0:00:26.2]} 28. e5 {[%clk 0:00:11.3]} 28... Rxf4 {[%clk 0:00:26.1]} 29. Bg3
{[%clk 0:00:07.8]} 29... Ra4 {[%clk 0:00:25.8]} 30. c4 {[%clk 0:00:07.3]} 30...
Bh6 {[%clk 0:00:25.4]} 31. Rcc3 {[%clk 0:00:02.9]} 31... Bxe3+ {[%clk
0:00:25.1]} 32. Rxe3 {[%clk 0:00:03.8]} 32... Rxc4 {[%clk 0:00:25.8]} 33. Kf2
{[%clk 0:00:03.8]} 33... h5 {[%clk 0:00:25.2]} 34. h4 {[%clk 0:00:03.9]} 34...
Re6 {[%clk 0:00:21.7]} 35. Kf3 {[%clk 0:00:03.9]} 35... Rec6 {[%clk 0:00:21.3]}
36. Be1 {[%clk 0:00:01.2]} 36... Kf8 {[%clk 0:00:19.5]} 37. g3 {[%clk
0:00:01.7]} 37... Ke8 {[%clk 0:00:19.7]} 38. Bb4 {[%clk 0:00:02]} 38... a5
{[%clk 0:00:19.9]} 39. Bd6 {[%clk 0:00:02.5]} 39... Rc3 {[%clk 0:00:19.6]} 40.
Rxc3 {[%clk 0:00:03]} 40... Rxc3+ {[%clk 0:00:19.3]} 41. Kf4 {[%clk 0:00:03.9]}
41... Kd7 {[%clk 0:00:19.7]} 42. g4 {[%clk 0:00:04.2]} 42... Rc4+ {[%clk
0:00:19]} 43. Kg5 {[%clk 0:00:04.3]} 43... Rxg4+ {[%clk 0:00:19.9]} 44. Kf6
{[%clk 0:00:04.8]} 44... Rf4+ {[%clk 0:00:19.8]} 45. Kg7 {[%clk 0:00:04.2]}
45... Ke6 {[%clk 0:00:20.4]} 46. Bc7 {[%clk 0:00:03.4]} 46... a4 {[%clk
0:00:20.2]} 47. Bxb6 {[%clk 0:00:03.6]} 47... Rxh4 {[%clk 0:00:20.8]} 48. Bc7
{[%clk 0:00:02.7]} 48... Re4 {[%clk 0:00:21.7]} 49. Bd6 {[%clk 0:00:03.2]} 49...
Rxe5 {[%clk 0:00:22]} 50. Bxe5 {[%clk 0:00:03.7]} 50... Kxe5 {[%clk 0:00:22.8]}
51. Kxf7 {[%clk 0:00:04.6]} 51... h4 {[%clk 0:00:23.6]} 52. Kxg6 {[%clk
0:00:05.1]} 52... h3 {[%clk 0:00:24.5]} 53. Kf7 {[%clk 0:00:05.7]} 53... h2
{[%clk 0:00:25.4]} 54. Ke7 {[%clk 0:00:06.6]} 54... h1=Q {[%clk 0:00:26.3]} 55.
Kd7 {[%clk 0:00:07.5]} 55... Qd5+ {[%clk 0:00:25.4]} 0-1

[Event "Late-Titled-Tuesday-Blitz-February-27-2024"]
[Site "Chess.com"]
[Date "2024.02.27"]
[Round "8"]
[White "ArturoCaceres"]
[Black "LUISMIGUELOV"]
[Result "1-0"]
[WhiteElo "2445"]
[BlackElo "2191"]
[TimeControl "180+1"]
[EndTime "15:28:02 PST"]
[Termination "ArturoCaceres won on time"]

1. b3 {[%clk 0:02:52.3]} 1... c6 {[%clk 0:02:59.1]} 2. Bb2 {[%clk 0:02:48.1]}
2... d5 {[%clk 0:02:59.6]} 3. Nf3 {[%clk 0:02:45.7]} 3... Bg4 {[%clk 0:02:59.9]}
4. Ne5 {[%clk 0:02:40]} 4... h5 {[%clk 0:02:59.1]} 5. d3 {[%clk 0:02:22.5]} 5...
Nf6 {[%clk 0:02:52.1]} 6. Nd2 {[%clk 0:02:14.5]} 6... Nbd7 {[%clk 0:02:51]} 7.
h3 {[%clk 0:02:06.3]} 7... Bf5 {[%clk 0:02:48.3]} 8. e3 {[%clk 0:02:04.8]} 8...
Nxe5 {[%clk 0:02:46.1]} 9. Bxe5 {[%clk 0:02:05.7]} 9... e6 {[%clk 0:02:45.6]}
10. Bb2 {[%clk 0:02:02.9]} 10... Bb4 {[%clk 0:02:30.1]} 11. a3 {[%clk
0:02:00.2]} 11... Ba5 {[%clk 0:02:30.1]} 12. b4 {[%clk 0:01:57.9]} 12... Bc7
{[%clk 0:02:29.5]} 13. Qe2 {[%clk 0:01:58.3]} 13... a5 {[%clk 0:02:21.9]} 14. e4
{[%clk 0:01:57.1]} 14... dxe4 {[%clk 0:02:19.4]} 15. dxe4 {[%clk 0:01:57.6]}
15... Bg6 {[%clk 0:02:15.4]} 16. g3 {[%clk 0:01:55]} 16... axb4 {[%clk
0:02:14.5]} 17. axb4 {[%clk 0:01:55.9]} 17... Rxa1+ {[%clk 0:02:14.1]} 18. Bxa1
{[%clk 0:01:56.8]} 18... O-O {[%clk 0:02:12.2]} 19. Bg2 {[%clk 0:01:52.2]} 19...
h4 {[%clk 0:02:10.2]} 20. g4 {[%clk 0:01:48.3]} 20... Qe7 {[%clk 0:01:49.7]} 21.
Bc3 {[%clk 0:01:41.4]} 21... Ra8 {[%clk 0:01:39.9]} 22. O-O {[%clk 0:01:32.1]}
22... Ra3 {[%clk 0:01:34.5]} 23. Nb1 {[%clk 0:01:30.2]} 23... Rxc3 {[%clk
0:01:25.5]} 24. Nxc3 {[%clk 0:01:27.6]} 24... Qxb4 {[%clk 0:01:25.8]} 25. Qd3
{[%clk 0:01:16]} 25... Nd5 {[%clk 0:01:08.2]} 26. Nxd5 {[%clk 0:00:57.5]} 26...
cxd5 {[%clk 0:01:07.7]} 27. c3 {[%clk 0:00:53]} 27... Qd6 {[%clk 0:01:06.8]} 28.
f4 {[%clk 0:00:52.4]} 28... Qc5+ {[%clk 0:00:49.3]} 29. Kh1 {[%clk 0:00:43.1]}
29... Bxe4 {[%clk 0:00:47.5]} 30. Bxe4 {[%clk 0:00:44]} 30... dxe4 {[%clk
0:00:47.4]} 31. Qxe4 {[%clk 0:00:37.8]} 31... Qxc3 {[%clk 0:00:46.5]} 32. Qg2
{[%clk 0:00:28.3]} 32... Qe3 {[%clk 0:00:39.9]} 33. Qf3 {[%clk 0:00:25]} 33...
Qd2 {[%clk 0:00:39.7]} 34. Qxb7 {[%clk 0:00:20]} 34... Bxf4 {[%clk 0:00:36.9]}
35. Qa8+ {[%clk 0:00:19.7]} 35... Kh7 {[%clk 0:00:32]} 36. Qe4+ {[%clk
0:00:19.4]} 36... f5 {[%clk 0:00:29.5]} 37. Qxf4 {[%clk 0:00:17.7]} 37... Qd5+
{[%clk 0:00:28.7]} 38. Qf3 {[%clk 0:00:16.9]} 38... Qd2 {[%clk 0:00:24.4]} 39.
gxf5 {[%clk 0:00:15.1]} 39... exf5 {[%clk 0:00:24.2]} 40. Qxf5+ {[%clk
0:00:14.4]} 40... Kg8 {[%clk 0:00:23]} 41. Qf7+ {[%clk 0:00:05.8]} 41... Kh7
{[%clk 0:00:22.9]} 42. Qf5+ {[%clk 0:00:06.7]} 42... Kg8 {[%clk 0:00:22.7]} 43.
Qf3 {[%clk 0:00:07.6]} 43... Qd6 {[%clk 0:00:14.2]} 44. Qg2 {[%clk 0:00:08.5]}
44... Qd3 {[%clk 0:00:11.9]} 45. Rg1 {[%clk 0:00:09.4]} 45... Qc3 {[%clk
0:00:09.6]} 46. Qd5+ {[%clk 0:00:09.1]} 46... Kh8 {[%clk 0:00:08.5]} 47. Qd8+
{[%clk 0:00:08.3]} 47... Kh7 {[%clk 0:00:07.2]} 48. Qxh4+ {[%clk 0:00:09.2]}
48... Kg8 {[%clk 0:00:07.6]} 49. Qg3 {[%clk 0:00:09.4]} 49... Qc6+ {[%clk
0:00:06.1]} 50. Kh2 {[%clk 0:00:10.3]} 50... Qc2+ {[%clk 0:00:05.5]} 51. Rg2
{[%clk 0:00:11.2]} 1-0

[Event "Late-Titled-Tuesday-Blitz-February-27-2024"]
[Site "Chess.com"]
[Date "2024.02.27"]
[Round "8"]
[White "kripri"]
[Black "db-banana"]
[Result "0-1"]
[WhiteElo "2351"]
[BlackElo "2483"]
[TimeControl "180+1"]
[EndTime "15:28:04 PST"]
[Termination "db-banana won by checkmate"]

1. e4 {[%clk 0:03:00.9]} 1... Nf6 {[%clk 0:02:59.3]} 2. e5 {[%clk 0:03:00.9]}
2... Nd5 {[%clk 0:02:59.5]} 3. d4 {[%clk 0:03:01.3]} 3... d6 {[%clk 0:03:00.1]}
4. Nf3 {[%clk 0:03:00.8]} 4... dxe5 {[%clk 0:03:00.3]} 5. Nxe5 {[%clk
0:03:01.2]} 5... g6 {[%clk 0:02:59.9]} 6. Be2 {[%clk 0:03:01.6]} 6... Bg7 {[%clk
0:02:59.8]} 7. O-O {[%clk 0:03:01.9]} 7... O-O {[%clk 0:03:00.4]} 8. c4 {[%clk
0:02:52]} 8... Nb6 {[%clk 0:03:00]} 9. Nc3 {[%clk 0:02:51.4]} 9... c6 {[%clk
0:03:00.5]} 10. Be3 {[%clk 0:02:46.3]} 10... Be6 {[%clk 0:02:54.9]} 11. b3
{[%clk 0:02:44.3]} 11... N8d7 {[%clk 0:02:48.8]} 12. Nxd7 {[%clk 0:02:43.5]}
12... Qxd7 {[%clk 0:02:47.7]} 13. Qd2 {[%clk 0:02:43.7]} 13... Rad8 {[%clk
0:02:44.1]} 14. Rfd1 {[%clk 0:02:43.5]} 14... Bg4 {[%clk 0:02:26.5]} 15. Ne4
{[%clk 0:02:32.1]} 15... Bxe2 {[%clk 0:02:22.4]} 16. Qxe2 {[%clk 0:02:33]} 16...
Nc8 {[%clk 0:02:02.8]} 17. Rac1 {[%clk 0:02:28.5]} 17... Nd6 {[%clk 0:02:02.5]}
18. Nc5 {[%clk 0:02:25.9]} 18... Qc8 {[%clk 0:02:03]} 19. Qf3 {[%clk 0:02:10.6]}
19... Nf5 {[%clk 0:02:01.4]} 20. Qe4 {[%clk 0:01:58.7]} 20... b6 {[%clk
0:01:49.7]} 21. Na4 {[%clk 0:01:50.2]} 21... Rd6 {[%clk 0:01:49.9]} 22. d5
{[%clk 0:01:41.5]} 22... Nxe3 {[%clk 0:01:35.7]} 23. Qxe3 {[%clk 0:01:37.4]}
23... e6 {[%clk 0:01:30.4]} 24. dxc6 {[%clk 0:01:26.7]} 24... Qxc6 {[%clk
0:01:30.5]} 25. Nc3 {[%clk 0:01:08.8]} 25... Rfd8 {[%clk 0:01:26.3]} 26. Rxd6
{[%clk 0:01:03.9]} 26... Qxd6 {[%clk 0:01:24.3]} 27. g3 {[%clk 0:01:01.8]} 27...
Bd4 {[%clk 0:01:16.6]} 28. Qf3 {[%clk 0:00:54.9]} 28... Qa3 {[%clk 0:00:57.6]}
29. Rd1 {[%clk 0:00:49.8]} 29... Qe7 {[%clk 0:00:42.5]} 30. Kg2 {[%clk 0:00:26]}
30... Bxc3 {[%clk 0:00:27.6]} 31. Rxd8+ {[%clk 0:00:25.4]} 31... Qxd8 {[%clk
0:00:28.5]} 32. Qxc3 {[%clk 0:00:25.5]} 32... Qd6 {[%clk 0:00:28.4]} 33. Qf3
{[%clk 0:00:19.8]} 33... a5 {[%clk 0:00:25.1]} 34. Qe4 {[%clk 0:00:17.3]} 34...
h5 {[%clk 0:00:24.4]} 35. Qe3 {[%clk 0:00:16.8]} 35... Qc6+ {[%clk 0:00:23.2]}
36. Qf3 {[%clk 0:00:16.5]} 36... Qc5 {[%clk 0:00:23.8]} 37. h4 {[%clk
0:00:16.1]} 37... a4 {[%clk 0:00:19.5]} 38. Qd3 {[%clk 0:00:15.4]} 38... axb3
{[%clk 0:00:17.3]} 39. axb3 {[%clk 0:00:15.2]} 39... Kh7 {[%clk 0:00:16.3]} 40.
Qc3 {[%clk 0:00:15.2]} 40... Qc6+ {[%clk 0:00:15.6]} 41. Kh2 {[%clk 0:00:15.3]}
41... Qc5 {[%clk 0:00:15.4]} 42. Qd2 {[%clk 0:00:15.5]} 42... Qa3 {[%clk
0:00:12.6]} 43. Qe3 {[%clk 0:00:14.8]} 43... Qd6 {[%clk 0:00:09.1]} 44. Qf3
{[%clk 0:00:15]} 44... Kg8 {[%clk 0:00:07.8]} 45. Kg2 {[%clk 0:00:15.9]} 45...
Qc5 {[%clk 0:00:07.9]} 46. Qe3 {[%clk 0:00:15.9]} 46... Qb4 {[%clk 0:00:06.4]}
47. Qd3 {[%clk 0:00:15.6]} 47... Qc5 {[%clk 0:00:06.1]} 48. Kh2 {[%clk
0:00:15.9]} 48... Qxf2+ {[%clk 0:00:05.7]} 49. Kh3 {[%clk 0:00:16.4]} 49... Qf5+
{[%clk 0:00:01.8]} 50. Qxf5 {[%clk 0:00:15.4]} 50... gxf5 {[%clk 0:00:02.7]} 51.
Kg2 {[%clk 0:00:14.1]} 51... Kf8 {[%clk 0:00:03.4]} 52. Kf3 {[%clk 0:00:14.6]}
52... Ke7 {[%clk 0:00:04.1]} 53. Kf4 {[%clk 0:00:13.9]} 53... Kd6 {[%clk
0:00:04.4]} 54. Kg5 {[%clk 0:00:13.9]} 54... e5 {[%clk 0:00:03.5]} 55. Kxh5
{[%clk 0:00:13.5]} 55... e4 {[%clk 0:00:04.1]} 56. Kg5 {[%clk 0:00:13.6]} 56...
e3 {[%clk 0:00:04.8]} 57. h5 {[%clk 0:00:14.2]} 57... e2 {[%clk 0:00:05.5]} 58.
h6 {[%clk 0:00:14.8]} 58... e1=Q {[%clk 0:00:06.1]} 59. h7 {[%clk 0:00:15.4]}
59... Qh1 {[%clk 0:00:04.9]} 60. Kxf5 {[%clk 0:00:16]} 60... Qxh7+ {[%clk
0:00:05.4]} 61. Kf6 {[%clk 0:00:15.6]} 61... Qg6# {[%clk 0:00:05.9]} 0-1

[Event "Late-Titled-Tuesday-Blitz-February-27-2024"]
[Site "Chess.com"]
[Date "2024.02.27"]
[Round "8"]
[White "pooh2012"]
[Black "GodzillaChessYoutube"]
[Result "1-0"]
[WhiteElo "2495"]
[BlackElo "2630"]
[TimeControl "180+1"]
[EndTime "15:28:09 PST"]
[Termination "pooh2012 won by checkmate"]

1. d4 {[%clk 0:03:00.9]} 1... Nf6 {[%clk 0:02:59.1]} 2. c4 {[%clk 0:02:59.8]}
2... e6 {[%clk 0:02:59]} 3. Nc3 {[%clk 0:02:59.5]} 3... Bb4 {[%clk 0:02:59.5]}
4. g3 {[%clk 0:02:59]} 4... d5 {[%clk 0:02:50.3]} 5. Bg2 {[%clk 0:02:57]} 5...
O-O {[%clk 0:02:46.7]} 6. Nf3 {[%clk 0:02:53.1]} 6... Nc6 {[%clk 0:02:43]} 7.
cxd5 {[%clk 0:02:48.3]} 7... exd5 {[%clk 0:02:35.5]} 8. O-O {[%clk 0:02:46.1]}
8... h6 {[%clk 0:02:29.9]} 9. Ne5 {[%clk 0:02:41.2]} 9... a5 {[%clk 0:01:53.8]}
10. Nxc6 {[%clk 0:02:34.1]} 10... bxc6 {[%clk 0:01:53.2]} 11. Na4 {[%clk
0:02:34.6]} 11... Re8 {[%clk 0:01:49.7]} 12. a3 {[%clk 0:02:32]} 12... Bd6
{[%clk 0:01:43]} 13. Bd2 {[%clk 0:02:25.2]} 13... Ba6 {[%clk 0:01:40.7]} 14. Re1
{[%clk 0:02:23.4]} 14... Bb5 {[%clk 0:01:35.9]} 15. Rc1 {[%clk 0:02:20.4]} 15...
Ne4 {[%clk 0:01:30.5]} 16. Nc3 {[%clk 0:01:45.7]} 16... a4 {[%clk 0:00:58.9]}
17. Nxe4 {[%clk 0:01:23.4]} 17... dxe4 {[%clk 0:00:58.1]} 18. Qc2 {[%clk
0:01:12]} 18... f5 {[%clk 0:00:50.7]} 19. f3 {[%clk 0:01:06.1]} 19... e3 {[%clk
0:00:33]} 20. Bc3 {[%clk 0:01:03.6]} 20... f4 {[%clk 0:00:32.9]} 21. Qg6 {[%clk
0:00:45.5]} 21... Qg5 {[%clk 0:00:27.6]} 22. Qxg5 {[%clk 0:00:40]} 22... hxg5
{[%clk 0:00:28.5]} 23. Bb4 {[%clk 0:00:31.2]} 23... Kf7 {[%clk 0:00:23.9]} 24.
Bxd6 {[%clk 0:00:25.4]} 24... cxd6 {[%clk 0:00:24.8]} 25. Bh3 {[%clk 0:00:23.9]}
25... Kf6 {[%clk 0:00:21.6]} 26. Bd7 {[%clk 0:00:22.6]} 26... Reb8 {[%clk
0:00:15]} 27. Bxc6 {[%clk 0:00:22.4]} 27... Bxc6 {[%clk 0:00:15.6]} 28. Rxc6
{[%clk 0:00:22.7]} 28... Rxb2 {[%clk 0:00:16.1]} 29. Rxd6+ {[%clk 0:00:23.2]}
29... Kf7 {[%clk 0:00:14.9]} 30. gxf4 {[%clk 0:00:18.7]} 30... gxf4 {[%clk
0:00:14.8]} 31. Kg2 {[%clk 0:00:19.3]} 31... Rc8 {[%clk 0:00:12.5]} 32. Kh3
{[%clk 0:00:17.7]} 32... Rcc2 {[%clk 0:00:09.2]} 33. Kg4 {[%clk 0:00:17.4]}
33... Rxe2 {[%clk 0:00:09.4]} 34. Rxe2 {[%clk 0:00:17.7]} 34... Rxe2 {[%clk
0:00:09.9]} 35. Kxf4 {[%clk 0:00:18]} 35... Rxh2 {[%clk 0:00:10.6]} 36. Kxe3
{[%clk 0:00:17.5]} 36... Ra2 {[%clk 0:00:11.2]} 37. Ra6 {[%clk 0:00:17.3]} 37...
Rxa3+ {[%clk 0:00:11.7]} 38. Ke4 {[%clk 0:00:17.7]} 38... Ra1 {[%clk 0:00:11.4]}
39. Ra7+ {[%clk 0:00:17.1]} 39... Kf6 {[%clk 0:00:11.4]} 40. Kd5 {[%clk
0:00:14.2]} 40... a3 {[%clk 0:00:11.1]} 41. Kd6 {[%clk 0:00:12.7]} 41... Rd1
{[%clk 0:00:09.7]} 42. d5 {[%clk 0:00:11.2]} 42... Rd3 {[%clk 0:00:09.9]} 43. f4
{[%clk 0:00:10.4]} 43... g6 {[%clk 0:00:08.9]} 44. Kc6 {[%clk 0:00:08.9]} 44...
Kf5 {[%clk 0:00:09.4]} 45. d6 {[%clk 0:00:06.8]} 45... Rc3+ {[%clk 0:00:09.4]}
46. Kd5 {[%clk 0:00:05.9]} 46... Kxf4 {[%clk 0:00:09.8]} 47. d7 {[%clk
0:00:04.7]} 47... g5 {[%clk 0:00:08.4]} 48. Ra4+ {[%clk 0:00:03.5]} 48... Ke3
{[%clk 0:00:08.8]} 49. Re4+ {[%clk 0:00:01.1]} 49... Kf3 {[%clk 0:00:06.2]} 50.
Rd4 {[%clk 0:00:02]} 50... a2 {[%clk 0:00:06.1]} 51. d8=Q {[%clk 0:00:01.6]}
51... a1=Q {[%clk 0:00:07]} 52. Qf6+ {[%clk 0:00:01.4]} 52... Ke2 {[%clk
0:00:07.2]} 53. Re4+ {[%clk 0:00:01.7]} 53... Kd2 {[%clk 0:00:06]} 54. Qf2+
{[%clk 0:00:01.9]} 54... Kd3 {[%clk 0:00:04.8]} 55. Re3# {[%clk 0:00:01.7]} 1-0

[Event "Late-Titled-Tuesday-Blitz-February-27-2024"]
[Site "Chess.com"]
[Date "2024.02.27"]
[Round "8"]
[White "Zampronha1971"]
[Black "ritanovikova"]
[Result "1/2-1/2"]
[WhiteElo "2336"]
[BlackElo "2232"]
[TimeControl "180+1"]
[EndTime "15:28:11 PST"]
[Termination "Game drawn by repetition"]

1. e4 {[%clk 0:03:00.9]} 1... d5 {[%clk 0:02:54.2]} 2. exd5 {[%clk 0:03:00]}
2... Qxd5 {[%clk 0:02:53.1]} 3. Nc3 {[%clk 0:03:00.6]} 3... Qd6 {[%clk 0:02:53]}
4. g3 {[%clk 0:02:57.3]} 4... Nf6 {[%clk 0:02:52.9]} 5. Bg2 {[%clk 0:02:56.7]}
5... a6 {[%clk 0:02:52.3]} 6. Nf3 {[%clk 0:02:56.3]} 6... Nc6 {[%clk 0:02:52]}
7. O-O {[%clk 0:02:56.4]} 7... Bg4 {[%clk 0:02:51.7]} 8. h3 {[%clk 0:02:53.4]}
8... Bh5 {[%clk 0:02:51.4]} 9. g4 {[%clk 0:02:53.4]} 9... Bg6 {[%clk 0:02:51.5]}
10. d3 {[%clk 0:02:53.1]} 10... e6 {[%clk 0:02:50.5]} 11. Qe2 {[%clk 0:02:52]}
11... O-O-O {[%clk 0:02:48.5]} 12. Bg5 {[%clk 0:02:49.4]} 12... Be7 {[%clk
0:02:46.4]} 13. Bh4 {[%clk 0:02:50]} 13... Nd5 {[%clk 0:02:43]} 14. Bg3 {[%clk
0:02:47.6]} 14... Qd7 {[%clk 0:02:36.6]} 15. Nxd5 {[%clk 0:02:43.5]} 15... exd5
{[%clk 0:02:34.6]} 16. d4 {[%clk 0:02:39.4]} 16... Rhe8 {[%clk 0:02:32]} 17. Ne5
{[%clk 0:02:37.3]} 17... Nxe5 {[%clk 0:02:30.2]} 18. dxe5 {[%clk 0:02:38.2]}
18... f6 {[%clk 0:02:25.7]} 19. f4 {[%clk 0:02:30.1]} 19... fxe5 {[%clk
0:02:19.8]} 20. fxe5 {[%clk 0:02:31]} 20... Kb8 {[%clk 0:02:07.9]} 21. Rad1
{[%clk 0:02:30.4]} 21... c6 {[%clk 0:02:04.3]} 22. c4 {[%clk 0:02:28.5]} 22...
Bc5+ {[%clk 0:01:59.5]} 23. Kh2 {[%clk 0:02:26.7]} 23... Qe6 {[%clk 0:01:57.5]}
24. cxd5 {[%clk 0:02:26.4]} 24... cxd5 {[%clk 0:01:57.6]} 25. Qd2 {[%clk
0:02:08.9]} 25... Be4 {[%clk 0:01:49.6]} 26. Bxe4 {[%clk 0:02:00.7]} 26... dxe4
{[%clk 0:01:49.2]} 27. Qxd8+ {[%clk 0:02:00.5]} 27... Rxd8 {[%clk 0:01:49.6]}
28. Rxd8+ {[%clk 0:02:00.6]} 28... Kc7 {[%clk 0:01:47.8]} 29. Rdd1 {[%clk
0:01:49.5]} 29... e3 {[%clk 0:01:46.3]} 30. Rfe1 {[%clk 0:01:47.3]} 30... Kc6
{[%clk 0:01:40.7]} 31. Rc1 {[%clk 0:01:42.7]} 31... Kb6 {[%clk 0:01:36.3]} 32.
a3 {[%clk 0:01:33.1]} 32... a5 {[%clk 0:01:35.1]} 33. b4 {[%clk 0:01:31.3]}
33... axb4 {[%clk 0:01:34.2]} 34. axb4 {[%clk 0:01:31]} 34... Bd4 {[%clk
0:01:34.1]} 35. Rc2 {[%clk 0:01:15.7]} 35... Bxe5 {[%clk 0:01:24.7]} 36. Rxe3
{[%clk 0:01:14.3]} 36... Bxg3+ {[%clk 0:01:24.5]} 37. Rxg3 {[%clk 0:01:15]}
37... Qd6 {[%clk 0:01:21.5]} 38. Rb2 {[%clk 0:01:08.3]} 38... g6 {[%clk
0:01:18.9]} 39. h4 {[%clk 0:01:04]} 39... h5 {[%clk 0:01:17.5]} 40. gxh5 {[%clk
0:01:02.7]} 40... gxh5 {[%clk 0:01:18.4]} 41. Rg2 {[%clk 0:00:57.8]} 41... Qf4
{[%clk 0:01:14.9]} 42. Kh3 {[%clk 0:00:51.1]} 42... Qxb4 {[%clk 0:01:12.7]} 43.
Rg6+ {[%clk 0:00:48.4]} 43... Kc7 {[%clk 0:01:08.8]} 44. Rg7+ {[%clk 0:00:46.8]}
44... Kb8 {[%clk 0:01:08.9]} 45. R7g5 {[%clk 0:00:45.4]} 45... Qc3+ {[%clk
0:00:59.5]} 46. Kh2 {[%clk 0:00:37.1]} 46... Qc7+ {[%clk 0:00:58.9]} 47. Kh3
{[%clk 0:00:35.6]} 47... Qd7+ {[%clk 0:00:58.9]} 48. Kh2 {[%clk 0:00:34.6]}
48... Qd6+ {[%clk 0:00:59.2]} 49. Kh1 {[%clk 0:00:34.7]} 49... Qd1+ {[%clk
0:00:48.9]} 50. Kh2 {[%clk 0:00:34.4]} 50... Qf3 {[%clk 0:00:48.3]} 51. Rg8+
{[%clk 0:00:27.9]} 51... Ka7 {[%clk 0:00:46.9]} 52. Ra2+ {[%clk 0:00:27.2]}
52... Kb6 {[%clk 0:00:46]} 53. Rb2+ {[%clk 0:00:26]} 53... Kc6 {[%clk
0:00:45.4]} 54. Rg6+ {[%clk 0:00:25.5]} 54... Kc5 {[%clk 0:00:39.6]} 55. Rg5+
{[%clk 0:00:23.6]} 55... Kc4 {[%clk 0:00:38.7]} 56. Rbb5 {[%clk 0:00:20.3]}
56... Qf4+ {[%clk 0:00:27.6]} 57. Kh3 {[%clk 0:00:20.1]} 57... Qf3+ {[%clk
0:00:27.6]} 58. Kh2 {[%clk 0:00:15.5]} 58... Qf2+ {[%clk 0:00:27]} 59. Kh3
{[%clk 0:00:15.8]} 59... Qf1+ {[%clk 0:00:27.1]} 60. Kh2 {[%clk 0:00:16.1]}
60... Qe2+ {[%clk 0:00:26.4]} 61. Kh3 {[%clk 0:00:16.2]} 61... Qe6+ {[%clk
0:00:25.6]} 62. Kh2 {[%clk 0:00:16.2]} 62... Qe2+ {[%clk 0:00:25.4]} 63. Kh3
{[%clk 0:00:16.5]} 63... Qf1+ {[%clk 0:00:24.8]} 64. Kh2 {[%clk 0:00:16.4]}
64... Qf2+ {[%clk 0:00:24.8]} 65. Kh3 {[%clk 0:00:16.8]} 65... Qf3+ {[%clk
0:00:25.2]} 66. Kh2 {[%clk 0:00:17.1]} 1/2-1/2